{"text_format":"1","workbook":"xlsx","n_sheets":4,"sheets":["Календарь","События","Нормы раб.времени","Праздники"],"not_rendered":{"charts":0,"images":14,"macros":1,"external_links":0,"defined_names":0,"comments":1,"pivot_tables":0},"unopened":[],"bounds":{"document_bytes":16777216,"sheet_cells":100000,"rows_first":2000,"rows_last":500,"rows_between":2000,"halvings":0,"cell_chars":16384,"cell_head_chars":4096},"cells_cut":0,"cells_raw":0,"read":"whole","date_system":"1900"}

{"sheet":"Календарь","index":0,"n_rows":44,"n_cols":39,"rows_kept":44,"cut":false,"hidden":false,"merged":[[24,1,25,7],[24,9,25,15],[24,17,25,23],[35,1,36,7],[35,9,36,15],[35,17,36,23],[2,1,3,7],[2,9,3,15],[2,17,3,23],[13,1,14,7],[13,9,14,15],[13,17,14,23]]}
[null,null,null,null,null,null,null,null,null,null,null,null,null,null,null,null,null,null,null,null,null,null,null,null,{"$f":"\"Сегодня \"&TEXT(TODAY(),\"ДД МММ ГГГГ\")&\" \"&IFERROR(VLOOKUP(TODAY(),Праздники!A1:B136,2,0),\" \")","v":"Сегодня 15 янв 2015  "},null,null,null,{"$f":"\"Мероприятия на \"&TEXT(AD1,\"ДДД\")","v":"Мероприятия на Пн"},"2015-01-05",null,null,null,"Настройки"]
["I квартал"]
[null,"2015-01-01",null,null,null,null,null,null,null,"2015-02-01",null,null,null,null,null,null,null,"2015-03-01",null,null,null,null,null,null,null,null,null,0.999999999999998]
[null,null,null,null,null,null,null,null,null,null,null,null,null,null,null,null,null,null,null,null,null,null,null,null,null,null,null,"01:00:00"]
[null,"пн","вт","ср","чт","пт","сб","вс",null,"пн","вт","ср","чт","пт","сб","вс",null,"пн","вт","ср","чт","пт","сб","вс",null,null,null,"02:00:00"]
[{"$f":"IF($AM$7,WEEKNUM(MAX(B6:H6),2),\"\")","v":1},{"$f":"IF(MONTH(DATE(YEAR(B3),MONTH(B3),1))\n<>MONTH(DATE(YEAR(B3),MONTH(B3),1)-\n(WEEKDAY(DATE(YEAR(B3),MONTH(B3),1),2)-1)\n+{0;1;2;3;4;5}*7+{1,2,3,4,5,6,7}-1),\" \",\nDATE(YEAR(B3),MONTH(B3),1)-\n(WEEKDAY(DATE(YEAR(B3),MONTH(B3),1),2)-1)\n+{0;1;2;3;4;5}*7+{1,2,3,4,5,6,7}-1)","v":" "}," "," ","2015-01-01","2015-01-02","2015-01-03","2015-01-04",{"$f":"IF($AM$7,WEEKNUM(MAX(J6:P6),2),\"\")","v":5},{"$f":"IF(MONTH(DATE(YEAR(J3),MONTH(J3),1))\n<>MONTH(DATE(YEAR(J3),MONTH(J3),1)-\n(WEEKDAY(DATE(YEAR(J3),MONTH(J3),1),2)-1)\n+{0;1;2;3;4;5}*7+{1,2,3,4,5,6,7}-1),\" \",\nDATE(YEAR(J3),MONTH(J3),1)-\n(WEEKDAY(DATE(YEAR(J3),MONTH(J3),1),2)-1)\n+{0;1;2;3;4;5}*7+{1,2,3,4,5,6,7}-1)","v":" "}," "," "," "," "," ","2015-02-01",{"$f":"IF($AM$7,WEEKNUM(MAX(R6:X6),2),\"\")","v":9},{"$f":"IF(MONTH(DATE(YEAR(R3),MONTH(R3),1))\n<>MONTH(DATE(YEAR(R3),MONTH(R3),1)-\n(WEEKDAY(DATE(YEAR(R3),MONTH(R3),1),2)-1)\n+{0;1;2;3;4;5}*7+{1,2,3,4,5,6,7}-1),\" \",\nDATE(YEAR(R3),MONTH(R3),1)-\n(WEEKDAY(DATE(YEAR(R3),MONTH(R3),1),2)-1)\n+{0;1;2;3;4;5}*7+{1,2,3,4,5,6,7}-1)","v":" "}," "," "," "," "," ","2015-03-01",null,null,null,"03:00:00"]
[{"$f":"IF($AM$7,WEEKNUM(MAX(B7:H7),2),\"\")","v":2},"2015-01-05","2015-01-06","2015-01-07","2015-01-08","2015-01-09","2015-01-10","2015-01-11",{"$f":"IF($AM$7,WEEKNUM(MAX(J7:P7),2),\"\")","v":6},"2015-02-02","2015-02-03","2015-02-04","2015-02-05","2015-02-06","2015-02-07","2015-02-08",{"$f":"IF($AM$7,WEEKNUM(MAX(R7:X7),2),\"\")","v":10},"2015-03-02","2015-03-03","2015-03-04","2015-03-05","2015-03-06","2015-03-07","2015-03-08",null,null,null,"04:00:00",null,null,null,null,null,null,null,null,null,null,true]
[3,"2015-01-12","2015-01-13","2015-01-14","2015-01-15","2015-01-16","2015-01-17","2015-01-18",7,"2015-02-09","2015-02-10","2015-02-11","2015-02-12","2015-02-13","2015-02-14","2015-02-15",11,"2015-03-09","2015-03-10","2015-03-11","2015-03-12","2015-03-13","2015-03-14","2015-03-15",null,null,null,"05:00:00"]
[4,"2015-01-19","2015-01-20","2015-01-21","2015-01-22","2015-01-23","2015-01-24","2015-01-25",8,"2015-02-16","2015-02-17","2015-02-18","2015-02-19","2015-02-20","2015-02-21","2015-02-22",12,"2015-03-16","2015-03-17","2015-03-18","2015-03-19","2015-03-20","2015-03-21","2015-03-22",null,null,null,"06:00:00"]
[5,"2015-01-26","2015-01-27","2015-01-28","2015-01-29","2015-01-30","2015-01-31"," ",9,"2015-02-23","2015-02-24","2015-02-25","2015-02-26","2015-02-27","2015-02-28"," ",13,"2015-03-23","2015-03-24","2015-03-25","2015-03-26","2015-03-27","2015-03-28","2015-03-29",null,null,null,"07:00:00","подьем"]
[null," "," "," "," "," "," "," ",null," "," "," "," "," "," "," ",null,{"$f":"IF(MONTH(DATE(YEAR(R3),MONTH(R3),1))\n<>MONTH(DATE(YEAR(R3),MONTH(R3),1)-\n(WEEKDAY(DATE(YEAR(R3),MONTH(R3),1),2)-1)\n+{0;1;2;3;4;5}*7+{1,2,3,4,5,6,7}-1),\" \",\nDATE(YEAR(R3),MONTH(R3),1)-\n(WEEKDAY(DATE(YEAR(R3),MONTH(R3),1),2)-1)\n+{0;1;2;3;4;5}*7+{1,2,3,4,5,6,7}-1)","v":" "},{"$f":"IF(MONTH(DATE(YEAR(R3),MONTH(R3),1))\n<>MONTH(DATE(YEAR(R3),MONTH(R3),1)-\n(WEEKDAY(DATE(YEAR(R3),MONTH(R3),1),2)-1)\n+{0;1;2;3;4;5}*7+{1,2,3,4,5,6,7}-1),\" \",\nDATE(YEAR(R3),MONTH(R3),1)-\n(WEEKDAY(DATE(YEAR(R3),MONTH(R3),1),2)-1)\n+{0;1;2;3;4;5}*7+{1,2,3,4,5,6,7}-1)","v":" "},{"$f":"IF(MONTH(DATE(YEAR(R3),MONTH(R3),1))\n<>MONTH(DATE(YEAR(R3),MONTH(R3),1)-\n(WEEKDAY(DATE(YEAR(R3),MONTH(R3),1),2)-1)\n+{0;1;2;3;4;5}*7+{1,2,3,4,5,6,7}-1),\" \",\nDATE(YEAR(R3),MONTH(R3),1)-\n(WEEKDAY(DATE(YEAR(R3),MONTH(R3),1),2)-1)\n+{0;1;2;3;4;5}*7+{1,2,3,4,5,6,7}-1)","v":" "},{"$f":"IF(MONTH(DATE(YEAR(R3),MONTH(R3),1))\n<>MONTH(DATE(YEAR(R3),MONTH(R3),1)-\n(WEEKDAY(DATE(YEAR(R3),MONTH(R3),1),2)-1)\n+{0;1;2;3;4;5}*7+{1,2,3,4,5,6,7}-1),\" \",\nDATE(YEAR(R3),MONTH(R3),1)-\n(WEEKDAY(DATE(YEAR(R3),MONTH(R3),1),2)-1)\n+{0;1;2;3;4;5}*7+{1,2,3,4,5,6,7}-1)","v":" "},{"$f":"IF(MONTH(DATE(YEAR(R3),MONTH(R3),1))\n<>MONTH(DATE(YEAR(R3),MONTH(R3),1)-\n(WEEKDAY(DATE(YEAR(R3),MONTH(R3),1),2)-1)\n+{0;1;2;3;4;5}*7+{1,2,3,4,5,6,7}-1),\" \",\nDATE(YEAR(R3),MONTH(R3),1)-\n(WEEKDAY(DATE(YEAR(R3),MONTH(R3),1),2)-1)\n+{0;1;2;3;4;5}*7+{1,2,3,4,5,6,7}-1)","v":" "},{"$f":"IF(MONTH(DATE(YEAR(R3),MONTH(R3),1))\n<>MONTH(DATE(YEAR(R3),MONTH(R3),1)-\n(WEEKDAY(DATE(YEAR(R3),MONTH(R3),1),2)-1)\n+{0;1;2;3;4;5}*7+{1,2,3,4,5,6,7}-1),\" \",\nDATE(YEAR(R3),MONTH(R3),1)-\n(WEEKDAY(DATE(YEAR(R3),MONTH(R3),1),2)-1)\n+{0;1;2;3;4;5}*7+{1,2,3,4,5,6,7}-1)","v":" "},{"$f":"IF(MONTH(DATE(YEAR(R3),MONTH(R3),1))\n<>MONTH(DATE(YEAR(R3),MONTH(R3),1)-\n(WEEKDAY(DATE(YEAR(R3),MONTH(R3),1),2)-1)\n+{0;1;2;3;4;5}*7+{1,2,3,4,5,6,7}-1),\" \",\nDATE(YEAR(R3),MONTH(R3),1)-\n(WEEKDAY(DATE(YEAR(R3),MONTH(R3),1),2)-1)\n+{0;1;2;3;4;5}*7+{1,2,3,4,5,6,7}-1)","v":" "},null,null,null,"08:00:00","Завтрак"]
[null,null,null,null,null,null,null,null,null,null,null,null,null,null,null,null,null,null,null,null,null,null,null,null,null,null,null,"09:00:00"]
["II квартал",null,null,null,null,null,null,null,null,null,null,null,null,null,null,null,null,null,null,null,null,null,null,null,null,null,null,"10:00:00"]
[null,"2015-04-01",null,null,null,null,null,null,null,"2015-05-01",null,null,null,null,null,null,null,"2015-06-01",null,null,null,null,null,null,null,null,null,"11:00:00","Поздний завтрак"]
[null,null,null,null,null,null,null,null,null,null,null,null,null,null,null,null,null,null,null,null,null,null,null,null,null,null,null,"12:00:00"]
[null,"пн","вт","ср","чт","пт","сб","вс",null,"пн","вт","ср","чт","пт","сб","вс",null,"пн","вт","ср","чт","пт","сб","вс",null,null,null,"13:00:00","Собрать чемодан в отпуск"]
[{"$f":"IF($AM$7,WEEKNUM(MAX(B17:H17),2),\"\")","v":14},{"$f":"IF(MONTH(DATE(YEAR(B14),MONTH(B14),1))\n<>MONTH(DATE(YEAR(B14),MONTH(B14),1)-\n(WEEKDAY(DATE(YEAR(B14),MONTH(B14),1),2)-1)\n+{0;1;2;3;4;5}*7+{1,2,3,4,5,6,7}-1),\" \",\nDATE(YEAR(B14),MONTH(B14),1)-\n(WEEKDAY(DATE(YEAR(B14),MONTH(B14),1),2)-1)\n+{0;1;2;3;4;5}*7+{1,2,3,4,5,6,7}-1)","v":" "}," ","2015-04-01","2015-04-02","2015-04-03","2015-04-04","2015-04-05",{"$f":"IF($AM$7,WEEKNUM(MAX(J17:P17),2),\"\")","v":18},{"$f":"IF(MONTH(DATE(YEAR(J14),MONTH(J14),1))\n<>MONTH(DATE(YEAR(J14),MONTH(J14),1)-\n(WEEKDAY(DATE(YEAR(J14),MONTH(J14),1),2)-1)\n+{0;1;2;3;4;5}*7+{1,2,3,4,5,6,7}-1),\" \",\nDATE(YEAR(J14),MONTH(J14),1)-\n(WEEKDAY(DATE(YEAR(J14),MONTH(J14),1),2)-1)\n+{0;1;2;3;4;5}*7+{1,2,3,4,5,6,7}-1)","v":" "}," "," "," ","2015-05-01","2015-05-02","2015-05-03",{"$f":"IF($AM$7,WEEKNUM(MAX(R17:X17),2),\"\")","v":23},{"$f":"IF(MONTH(DATE(YEAR(R14),MONTH(R14),1))\n<>MONTH(DATE(YEAR(R14),MONTH(R14),1)-\n(WEEKDAY(DATE(YEAR(R14),MONTH(R14),1),2)-1)\n+{0;1;2;3;4;5}*7+{1,2,3,4,5,6,7}-1),\" \",\nDATE(YEAR(R14),MONTH(R14),1)-\n(WEEKDAY(DATE(YEAR(R14),MONTH(R14),1),2)-1)\n+{0;1;2;3;4;5}*7+{1,2,3,4,5,6,7}-1)","v":"2015-06-01"},"2015-06-02","2015-06-03","2015-06-04","2015-06-05","2015-06-06","2015-06-07",null,null,null,"14:00:00"]
[{"$f":"IF($AM$7,WEEKNUM(MAX(B18:H18),2),\"\")","v":15},"2015-04-06","2015-04-07","2015-04-08","2015-04-09","2015-04-10","2015-04-11","2015-04-12",{"$f":"IF($AM$7,WEEKNUM(MAX(J18:P18),2),\"\")","v":19},"2015-05-04","2015-05-05","2015-05-06","2015-05-07","2015-05-08","2015-05-09","2015-05-10",{"$f":"IF($AM$7,WEEKNUM(MAX(R18:X18),2),\"\")","v":24},"2015-06-08","2015-06-09","2015-06-10","2015-06-11","2015-06-12","2015-06-13","2015-06-14",null,null,null,"15:00:00","Обед"]
[16,"2015-04-13","2015-04-14","2015-04-15","2015-04-16","2015-04-17","2015-04-18","2015-04-19",20,"2015-05-11","2015-05-12","2015-05-13","2015-05-14","2015-05-15","2015-05-16","2015-05-17",25,"2015-06-15","2015-06-16","2015-06-17","2015-06-18","2015-06-19","2015-06-20","2015-06-21",null,null,null,"16:00:00"]
[17,"2015-04-20","2015-04-21","2015-04-22","2015-04-23","2015-04-24","2015-04-25","2015-04-26",21,"2015-05-18","2015-05-19","2015-05-20","2015-05-21","2015-05-22","2015-05-23","2015-05-24",26,"2015-06-22","2015-06-23","2015-06-24","2015-06-25","2015-06-26","2015-06-27","2015-06-28",null,null,null,"17:00:00"]
[18,"2015-04-27","2015-04-28","2015-04-29","2015-04-30"," "," "," ",22,"2015-05-25","2015-05-26","2015-05-27","2015-05-28","2015-05-29","2015-05-30","2015-05-31",27,"2015-06-29","2015-06-30"," "," "," "," "," ",null,null,null,"18:00:00"]
[null,{"$f":"IF(MONTH(DATE(YEAR(B14),MONTH(B14),1))\n<>MONTH(DATE(YEAR(B14),MONTH(B14),1)-\n(WEEKDAY(DATE(YEAR(B14),MONTH(B14),1),2)-1)\n+{0;1;2;3;4;5}*7+{1,2,3,4,5,6,7}-1),\" \",\nDATE(YEAR(B14),MONTH(B14),1)-\n(WEEKDAY(DATE(YEAR(B14),MONTH(B14),1),2)-1)\n+{0;1;2;3;4;5}*7+{1,2,3,4,5,6,7}-1)","v":" "},{"$f":"IF(MONTH(DATE(YEAR(B14),MONTH(B14),1))\n<>MONTH(DATE(YEAR(B14),MONTH(B14),1)-\n(WEEKDAY(DATE(YEAR(B14),MONTH(B14),1),2)-1)\n+{0;1;2;3;4;5}*7+{1,2,3,4,5,6,7}-1),\" \",\nDATE(YEAR(B14),MONTH(B14),1)-\n(WEEKDAY(DATE(YEAR(B14),MONTH(B14),1),2)-1)\n+{0;1;2;3;4;5}*7+{1,2,3,4,5,6,7}-1)","v":" "},{"$f":"IF(MONTH(DATE(YEAR(B14),MONTH(B14),1))\n<>MONTH(DATE(YEAR(B14),MONTH(B14),1)-\n(WEEKDAY(DATE(YEAR(B14),MONTH(B14),1),2)-1)\n+{0;1;2;3;4;5}*7+{1,2,3,4,5,6,7}-1),\" \",\nDATE(YEAR(B14),MONTH(B14),1)-\n(WEEKDAY(DATE(YEAR(B14),MONTH(B14),1),2)-1)\n+{0;1;2;3;4;5}*7+{1,2,3,4,5,6,7}-1)","v":" "},{"$f":"IF(MONTH(DATE(YEAR(B14),MONTH(B14),1))\n<>MONTH(DATE(YEAR(B14),MONTH(B14),1)-\n(WEEKDAY(DATE(YEAR(B14),MONTH(B14),1),2)-1)\n+{0;1;2;3;4;5}*7+{1,2,3,4,5,6,7}-1),\" \",\nDATE(YEAR(B14),MONTH(B14),1)-\n(WEEKDAY(DATE(YEAR(B14),MONTH(B14),1),2)-1)\n+{0;1;2;3;4;5}*7+{1,2,3,4,5,6,7}-1)","v":" "},{"$f":"IF(MONTH(DATE(YEAR(B14),MONTH(B14),1))\n<>MONTH(DATE(YEAR(B14),MONTH(B14),1)-\n(WEEKDAY(DATE(YEAR(B14),MONTH(B14),1),2)-1)\n+{0;1;2;3;4;5}*7+{1,2,3,4,5,6,7}-1),\" \",\nDATE(YEAR(B14),MONTH(B14),1)-\n(WEEKDAY(DATE(YEAR(B14),MONTH(B14),1),2)-1)\n+{0;1;2;3;4;5}*7+{1,2,3,4,5,6,7}-1)","v":" "},{"$f":"IF(MONTH(DATE(YEAR(B14),MONTH(B14),1))\n<>MONTH(DATE(YEAR(B14),MONTH(B14),1)-\n(WEEKDAY(DATE(YEAR(B14),MONTH(B14),1),2)-1)\n+{0;1;2;3;4;5}*7+{1,2,3,4,5,6,7}-1),\" \",\nDATE(YEAR(B14),MONTH(B14),1)-\n(WEEKDAY(DATE(YEAR(B14),MONTH(B14),1),2)-1)\n+{0;1;2;3;4;5}*7+{1,2,3,4,5,6,7}-1)","v":" "},{"$f":"IF(MONTH(DATE(YEAR(B14),MONTH(B14),1))\n<>MONTH(DATE(YEAR(B14),MONTH(B14),1)-\n(WEEKDAY(DATE(YEAR(B14),MONTH(B14),1),2)-1)\n+{0;1;2;3;4;5}*7+{1,2,3,4,5,6,7}-1),\" \",\nDATE(YEAR(B14),MONTH(B14),1)-\n(WEEKDAY(DATE(YEAR(B14),MONTH(B14),1),2)-1)\n+{0;1;2;3;4;5}*7+{1,2,3,4,5,6,7}-1)","v":" "},null," "," "," "," "," "," "," ",null," "," "," "," "," "," "," ",null,null,null,"19:00:00"]
[null,null,null,null,null,null,null,null,null,null,null,null,null,null,null,null,null,null,null,null,null,null,null,null,null,null,null,"20:00:00","Ужин в ресторане \"Пушкин\""]
["III квартал",null,null,null,null,null,null,null,null,null,null,null,null,null,null,null,null,null,null,null,null,null,null,null,null,null,null,"21:00:00"]
[null,"2015-07-01",null,null,null,null,null,null,null,"2015-08-01",null,null,null,null,null,null,null,"2015-09-01",null,null,null,null,null,null,null,null,null,"22:00:00"]
[null,null,null,null,null,null,null,null,null,null,null,null,null,null,null,null,null,null,null,null,null,null,null,null,null,null,null,"23:00:00"]
[null,"пн","вт","ср","чт","пт","сб","вс",null,"пн","вт","ср","чт","пт","сб","вс",null,"пн","вт","ср","чт","пт","сб","вс"]
[{"$f":"IF($AM$7,WEEKNUM(MAX(B28:H28),2),\"\")","v":27},{"$f":"IF(MONTH(DATE(YEAR(B25),MONTH(B25),1))\n<>MONTH(DATE(YEAR(B25),MONTH(B25),1)-\n(WEEKDAY(DATE(YEAR(B25),MONTH(B25),1),2)-1)\n+{0;1;2;3;4;5}*7+{1,2,3,4,5,6,7}-1),\" \",\nDATE(YEAR(B25),MONTH(B25),1)-\n(WEEKDAY(DATE(YEAR(B25),MONTH(B25),1),2)-1)\n+{0;1;2;3;4;5}*7+{1,2,3,4,5,6,7}-1)","v":" "}," ","2015-07-01","2015-07-02","2015-07-03","2015-07-04","2015-07-05",{"$f":"IF($AM$7,WEEKNUM(MAX(J28:P28),2),\"\")","v":31},{"$f":"IF(MONTH(DATE(YEAR(J25),MONTH(J25),1))\n<>MONTH(DATE(YEAR(J25),MONTH(J25),1)-\n(WEEKDAY(DATE(YEAR(J25),MONTH(J25),1),2)-1)\n+{0;1;2;3;4;5}*7+{1,2,3,4,5,6,7}-1),\" \",\nDATE(YEAR(J25),MONTH(J25),1)-\n(WEEKDAY(DATE(YEAR(J25),MONTH(J25),1),2)-1)\n+{0;1;2;3;4;5}*7+{1,2,3,4,5,6,7}-1)","v":" "}," "," "," "," ","2015-08-01","2015-08-02",{"$f":"IF($AM$7,WEEKNUM(MAX(R28:X28),2),\"\")","v":36},{"$f":"IF(MONTH(DATE(YEAR(R25),MONTH(R25),1))\n<>MONTH(DATE(YEAR(R25),MONTH(R25),1)-\n(WEEKDAY(DATE(YEAR(R25),MONTH(R25),1),2)-1)\n+{0;1;2;3;4;5}*7+{1,2,3,4,5,6,7}-1),\" \",\nDATE(YEAR(R25),MONTH(R25),1)-\n(WEEKDAY(DATE(YEAR(R25),MONTH(R25),1),2)-1)\n+{0;1;2;3;4;5}*7+{1,2,3,4,5,6,7}-1)","v":" "},"2015-09-01","2015-09-02","2015-09-03","2015-09-04","2015-09-05","2015-09-06"]
[{"$f":"IF($AM$7,WEEKNUM(MAX(B29:H29),2),\"\")","v":28},"2015-07-06","2015-07-07","2015-07-08","2015-07-09","2015-07-10","2015-07-11","2015-07-12",{"$f":"IF($AM$7,WEEKNUM(MAX(J29:P29),2),\"\")","v":32},"2015-08-03","2015-08-04","2015-08-05","2015-08-06","2015-08-07","2015-08-08","2015-08-09",37,"2015-09-07","2015-09-08","2015-09-09","2015-09-10","2015-09-11","2015-09-12","2015-09-13"]
[29,"2015-07-13","2015-07-14","2015-07-15","2015-07-16","2015-07-17","2015-07-18","2015-07-19",33,"2015-08-10","2015-08-11","2015-08-12","2015-08-13","2015-08-14","2015-08-15","2015-08-16",38,"2015-09-14","2015-09-15","2015-09-16","2015-09-17","2015-09-18","2015-09-19","2015-09-20"]
[30,"2015-07-20","2015-07-21","2015-07-22","2015-07-23","2015-07-24","2015-07-25","2015-07-26",34,"2015-08-17","2015-08-18","2015-08-19","2015-08-20","2015-08-21","2015-08-22","2015-08-23",39,"2015-09-21","2015-09-22","2015-09-23","2015-09-24","2015-09-25","2015-09-26","2015-09-27"]
[31,"2015-07-27","2015-07-28","2015-07-29","2015-07-30","2015-07-31"," "," ",35,"2015-08-24","2015-08-25","2015-08-26","2015-08-27","2015-08-28","2015-08-29","2015-08-30",40,"2015-09-28","2015-09-29","2015-09-30"," "," "," "," "]
[null," "," "," "," "," "," "," ",36,"2015-08-31"," "," "," "," "," "," ",null," "," "," "," "," "," "," "]
[]
["IV квартал"]
[null,"2015-10-01",null,null,null,null,null,null,null,"2015-11-01",null,null,null,null,null,null,null,"2015-12-01"]
[]
[null,"пн","вт","ср","чт","пт","сб","вс",null,"пн","вт","ср","чт","пт","сб","вс",null,"пн","вт","ср","чт","пт","сб","вс"]
[{"$f":"IF($AM$7,WEEKNUM(MAX(B39:H39),2),\"\")","v":40},{"$f":"IF(MONTH(DATE(YEAR(B36),MONTH(B36),1))\n<>MONTH(DATE(YEAR(B36),MONTH(B36),1)-\n(WEEKDAY(DATE(YEAR(B36),MONTH(B36),1),2)-1)\n+{0;1;2;3;4;5}*7+{1,2,3,4,5,6,7}-1),\" \",\nDATE(YEAR(B36),MONTH(B36),1)-\n(WEEKDAY(DATE(YEAR(B36),MONTH(B36),1),2)-1)\n+{0;1;2;3;4;5}*7+{1,2,3,4,5,6,7}-1)","v":" "}," "," ","2015-10-01","2015-10-02","2015-10-03","2015-10-04",{"$f":"IF($AM$7,WEEKNUM(MAX(J39:P39),2),\"\")","v":44},{"$f":"IF(MONTH(DATE(YEAR(J36),MONTH(J36),1))\n<>MONTH(DATE(YEAR(J36),MONTH(J36),1)-\n(WEEKDAY(DATE(YEAR(J36),MONTH(J36),1),2)-1)\n+{0;1;2;3;4;5}*7+{1,2,3,4,5,6,7}-1),\" \",\nDATE(YEAR(J36),MONTH(J36),1)-\n(WEEKDAY(DATE(YEAR(J36),MONTH(J36),1),2)-1)\n+{0;1;2;3;4;5}*7+{1,2,3,4,5,6,7}-1)","v":" "}," "," "," "," "," ","2015-11-01",{"$f":"IF($AM$7,WEEKNUM(MAX(R39:X39),2),\"\")","v":49},{"$f":"IF(MONTH(DATE(YEAR(R36),MONTH(R36),1))\n<>MONTH(DATE(YEAR(R36),MONTH(R36),1)-\n(WEEKDAY(DATE(YEAR(R36),MONTH(R36),1),2)-1)\n+{0;1;2;3;4;5}*7+{1,2,3,4,5,6,7}-1),\" \",\nDATE(YEAR(R36),MONTH(R36),1)-\n(WEEKDAY(DATE(YEAR(R36),MONTH(R36),1),2)-1)\n+{0;1;2;3;4;5}*7+{1,2,3,4,5,6,7}-1)","v":" "},"2015-12-01","2015-12-02","2015-12-03","2015-12-04","2015-12-05","2015-12-06"]
[41,"2015-10-05","2015-10-06","2015-10-07","2015-10-08","2015-10-09","2015-10-10","2015-10-11",45,"2015-11-02","2015-11-03","2015-11-04","2015-11-05","2015-11-06","2015-11-07","2015-11-08",50,"2015-12-07","2015-12-08","2015-12-09","2015-12-10","2015-12-11","2015-12-12","2015-12-13"]
[42,"2015-10-12","2015-10-13","2015-10-14","2015-10-15","2015-10-16","2015-10-17","2015-10-18",46,"2015-11-09","2015-11-10","2015-11-11","2015-11-12","2015-11-13","2015-11-14","2015-11-15",51,"2015-12-14","2015-12-15","2015-12-16","2015-12-17","2015-12-18","2015-12-19","2015-12-20"]
[43,"2015-10-19","2015-10-20","2015-10-21","2015-10-22","2015-10-23","2015-10-24","2015-10-25",47,"2015-11-16","2015-11-17","2015-11-18","2015-11-19","2015-11-20","2015-11-21","2015-11-22",52,"2015-12-21","2015-12-22","2015-12-23","2015-12-24","2015-12-25","2015-12-26","2015-12-27"]
[44,"2015-10-26","2015-10-27","2015-10-28","2015-10-29","2015-10-30","2015-10-31"," ",48,"2015-11-23","2015-11-24","2015-11-25","2015-11-26","2015-11-27","2015-11-28","2015-11-29",53,"2015-12-28","2015-12-29","2015-12-30","2015-12-31"," "," "," "]
[null," "," "," "," "," "," "," ",49,"2015-11-30"," "," "," "," "," "," ",null," "," "," "," "," "," "," "]

{"sheet":"События","index":1,"n_rows":366,"n_cols":26,"rows_kept":366,"cut":false,"hidden":false,"merged":[]}
["Дата/Время","0:00","1:00","2:00","3:00","4:00","5:00","6:00","7:00","8:00","9:00","10:00","11:00","12:00","13:00","14:00","15:00","16:00","17:00","18:00","19:00","20:00","21:00","22:00","23:00","Итого событий"]
["2015-01-01","Встретить новый год!",null,"Запустить салюты",null,"Поджечь елку",null,"Упасть в оливье",null,null,null,null,null,null,null,null,null,null,null,null,null,null,null,null,null,{"$f":"COUNTA(B2:Y2)","v":4}]
["2015-01-02",null,null,null,null,null,null,null,null,null,null,null,null,null,null,null,null,null,null,null,null,null,null,null,null,{"$f":"COUNTA(B3:Y3)","v":0}]
["2015-01-03",null,null,null,null,null,null,null,null,null,null,null,null,null,null,null,null,null,null,null,null,null,null,null,null,0]
["2015-01-04",null,null,null,null,null,null,null,null,null,null,null,null,null,null,null,null,null,null,null,null,null,null,null,null,0]
["2015-01-05",null,null,null,null,null,null,null,"подьем","Завтрак",null,null,"Поздний завтрак",null,"Собрать чемодан в отпуск",null,"Обед",null,null,null,null,"Ужин в ресторане \"Пушкин\"",null,null,null,6]
["2015-01-06",null,null,null,null,null,null,null,null,null,null,null,null,null,null,null,null,null,null,null,null,null,null,null,null,0]
["2015-01-07",null,null,null,null,null,null,null,null,null,null,null,null,null,null,null,null,null,null,null,null,null,null,null,null,0]
["2015-01-08",null,null,null,null,null,null,null,null,null,null,null,null,null,null,null,null,null,null,null,null,null,null,null,null,0]
["2015-01-09",null,null,null,null,null,null,null,null,null,null,null,null,null,null,null,null,null,null,null,null,null,null,null,null,0]
["2015-01-10",null,null,null,null,null,null,null,null,null,null,null,null,null,null,null,null,null,null,null,null,null,null,null,null,0]
["2015-01-11",null,null,null,null,null,null,null,null,null,null,null,null,null,null,null,null,null,null,null,null,null,null,null,null,0]
["2015-01-12",null,null,null,null,null,null,null,null,null,null,null,null,null,null,null,null,null,null,null,null,null,null,null,null,0]
["2015-01-13",null,null,null,null,null,null,null,null,null,null,null,null,null,null,null,null,null,null,null,null,null,null,null,null,0]
["2015-01-14",null,null,null,null,null,null,null,null,null,null,null,null,null,null,null,null,null,null,null,null,null,null,null,null,0]
["2015-01-15",null,null,null,null,null,null,null,null,null,null,null,null,null,null,null,null,null,null,null,null,null,null,null,null,0]
["2015-01-16",null,null,null,null,null,null,null,null,null,null,null,null,null,null,null,null,null,null,null,null,null,null,null,null,0]
["2015-01-17",null,null,null,null,null,null,null,null,null,null,null,null,null,null,null,null,null,null,null,null,null,null,null,null,0]
["2015-01-18",null,null,null,null,null,null,null,null,null,null,null,null,null,null,null,null,null,null,null,null,null,null,null,null,0]
["2015-01-19",null,null,null,null,null,null,null,null,null,null,null,null,null,null,null,null,null,null,null,null,null,null,null,null,0]
["2015-01-20",null,null,null,null,null,null,null,null,null,null,null,null,null,null,null,null,null,null,null,null,null,null,null,null,0]
["2015-01-21",null,null,null,null,null,null,null,null,null,null,null,null,null,null,null,null,null,null,null,null,null,null,null,null,0]
["2015-01-22",null,null,null,null,null,null,null,null,null,null,null,null,null,null,null,null,null,null,null,null,null,null,null,null,0]
["2015-01-23",null,null,null,null,null,null,null,null,null,null,null,null,null,null,null,null,null,null,null,null,null,null,null,null,0]
["2015-01-24",null,null,null,null,null,null,null,null,null,null,null,null,null,null,null,null,null,null,null,null,null,null,null,null,0]
["2015-01-25",null,null,null,null,null,null,null,null,null,null,null,null,null,null,null,null,null,null,null,null,null,null,null,null,0]
["2015-01-26",null,null,null,null,null,null,null,null,null,null,null,null,null,null,null,null,null,null,null,null,null,null,null,null,0]
["2015-01-27",null,null,null,null,null,null,null,null,null,null,null,null,null,null,null,null,null,null,null,null,null,null,null,null,0]
["2015-01-28",null,null,null,null,null,null,null,null,null,null,null,null,null,null,null,null,null,null,null,null,null,null,null,null,0]
["2015-01-29",null,null,null,null,null,null,null,null,null,null,null,null,null,null,null,null,null,null,null,null,null,null,null,null,0]
["2015-01-30",null,null,null,null,null,null,null,null,null,null,null,null,null,null,null,null,null,null,null,null,null,null,null,null,0]
["2015-01-31",null,null,null,null,null,null,null,null,null,null,null,null,null,null,null,null,null,null,null,null,null,null,null,null,0]
["2015-02-01",null,null,null,null,null,null,null,null,null,null,null,null,null,null,null,null,null,null,null,null,null,null,null,null,0]
["2015-02-02",null,null,null,null,null,null,null,null,null,null,null,null,null,null,null,null,null,null,null,null,null,null,null,null,0]
["2015-02-03",null,null,null,null,null,null,null,null,null,null,null,null,null,null,null,null,null,null,null,null,null,null,null,null,0]
["2015-02-04",null,null,null,null,null,null,null,null,null,null,null,null,null,null,null,null,null,null,null,null,null,null,null,null,0]
["2015-02-05",null,null,null,null,null,null,null,null,null,null,null,null,null,null,null,null,null,null,null,null,null,null,null,null,0]
["2015-02-06",null,null,null,null,null,null,null,null,null,null,null,null,null,null,null,null,null,null,null,null,null,null,null,null,0]
["2015-02-07",null,null,null,null,null,null,null,null,null,null,null,null,null,null,null,null,null,null,null,null,null,null,null,null,0]
["2015-02-08",null,null,null,null,null,null,null,null,null,null,null,null,null,null,null,null,null,null,null,null,null,null,null,null,0]
["2015-02-09",null,null,null,null,null,null,null,null,null,null,null,null,null,null,null,null,null,null,null,null,null,null,null,null,0]
["2015-02-10",null,null,null,null,null,null,null,null,null,null,null,null,null,null,null,null,null,null,null,null,null,null,null,null,0]
["2015-02-11",null,null,null,null,null,null,null,null,null,null,null,null,null,null,null,null,null,null,null,null,null,null,null,null,0]
["2015-02-12",null,null,null,null,null,null,null,null,null,null,null,null,null,null,null,null,null,null,null,null,null,null,null,null,0]
["2015-02-13",null,null,null,null,null,null,null,null,null,null,null,null,null,null,null,null,null,null,null,"Купить жене подарок на д.Святого Валентина",null,null,null,null,1]
["2015-02-14",null,null,null,null,null,null,null,null,null,null,null,null,null,null,null,null,null,null,null,null,null,null,null,null,0]
["2015-02-15",null,null,null,null,null,null,null,null,null,null,null,null,null,null,null,null,null,null,null,null,null,null,null,null,0]
["2015-02-16",null,null,null,null,null,null,null,null,null,null,null,null,null,null,null,null,null,null,null,null,null,null,null,null,0]
["2015-02-17",null,null,null,null,null,null,null,null,null,null,null,null,null,null,null,null,null,null,null,null,null,null,null,null,0]
["2015-02-18",null,null,null,null,null,null,null,null,null,null,null,null,null,null,null,null,null,null,null,null,null,null,null,null,0]
["2015-02-19",null,null,null,null,null,null,null,null,null,null,null,null,null,null,null,null,null,null,null,null,null,null,null,null,0]
["2015-02-20",null,null,null,null,null,null,null,null,null,null,null,null,null,null,null,null,null,null,null,null,null,null,null,null,0]
["2015-02-21",null,null,null,null,null,null,null,null,null,null,null,null,null,null,null,null,null,null,null,null,null,null,null,null,0]
["2015-02-22",null,null,null,null,null,null,null,null,null,null,null,null,null,null,null,null,null,null,null,null,null,null,null,null,0]
["2015-02-23",null,null,null,null,null,null,null,null,null,null,null,null,null,null,null,null,null,null,null,null,null,null,null,null,0]
["2015-02-24",null,null,null,null,null,null,null,null,null,null,null,null,null,null,null,null,null,null,null,null,null,null,null,null,0]
["2015-02-25",null,null,null,null,null,null,null,null,null,null,null,null,null,null,null,null,null,null,null,null,null,null,null,null,0]
["2015-02-26",null,null,null,null,null,null,null,null,null,null,null,null,null,null,null,null,null,null,null,null,null,null,null,null,0]
["2015-02-27",null,null,null,null,null,null,null,null,null,null,null,null,null,null,null,null,null,null,null,null,null,null,null,null,0]
["2015-02-28",null,null,null,null,null,null,null,null,null,null,null,null,null,null,null,null,null,null,null,null,null,null,null,null,0]
["2015-03-01",null,null,null,null,null,null,null,null,null,null,null,null,null,null,null,null,null,null,null,null,null,null,null,null,0]
["2015-03-02",null,null,null,null,null,null,null,null,null,null,null,null,null,null,null,null,null,null,null,null,null,null,null,null,0]
["2015-03-03",null,null,null,null,null,null,null,null,null,null,null,null,null,null,null,null,null,null,null,null,null,null,null,null,0]
["2015-03-04",null,null,null,null,null,null,null,null,null,null,null,null,null,null,null,null,null,null,null,null,null,null,null,null,0]
["2015-03-05",null,null,null,null,null,null,null,null,null,null,null,null,null,null,null,null,null,null,null,null,null,null,null,null,0]
["2015-03-06",null,null,null,null,null,null,null,null,null,null,null,null,null,null,null,null,null,null,null,null,null,null,null,null,0]
["2015-03-07",null,null,null,null,null,null,null,null,null,null,null,null,null,null,null,null,null,null,null,null,null,null,null,null,{"$f":"COUNTA(B67:Y67)","v":0}]
["2015-03-08",null,null,null,null,null,null,null,null,null,null,null,null,null,null,null,null,null,null,null,null,null,null,null,null,0]
["2015-03-09",null,null,null,null,null,null,null,null,null,null,null,null,null,null,null,null,null,null,null,null,null,null,null,null,0]
["2015-03-10",null,null,null,null,null,null,null,null,null,null,null,null,null,null,null,null,null,null,null,null,null,null,null,null,0]
["2015-03-11",null,null,null,null,null,null,null,null,null,null,null,null,null,null,null,null,null,null,null,null,null,null,null,null,0]
["2015-03-12",null,null,null,null,null,null,null,null,null,null,null,null,null,null,null,null,null,null,null,null,null,null,null,null,0]
["2015-03-13",null,null,null,null,null,null,null,null,null,null,null,null,null,null,null,null,null,null,null,null,null,null,null,null,0]
["2015-03-14",null,null,null,null,null,null,null,null,null,null,null,null,null,null,null,null,null,null,null,null,null,null,null,null,0]
["2015-03-15",null,null,null,null,null,null,null,null,null,null,null,null,null,null,null,null,null,null,null,null,null,null,null,null,0]
["2015-03-16",null,null,null,null,null,null,null,null,null,null,null,null,null,null,null,null,null,null,null,null,null,null,null,null,0]
["2015-03-17",null,null,null,null,null,null,null,null,null,null,null,null,null,null,null,null,null,null,null,null,null,null,null,null,0]
["2015-03-18",null,null,null,null,null,null,null,null,null,null,null,null,null,null,null,null,null,null,null,null,null,null,null,null,0]
["2015-03-19",null,null,null,null,null,null,null,null,null,null,null,null,null,null,null,null,null,null,null,null,null,null,null,null,0]
["2015-03-20",null,null,null,null,null,null,null,null,null,null,null,null,null,null,null,null,null,null,null,null,null,null,null,null,0]
["2015-03-21",null,null,null,null,null,null,null,null,null,null,null,null,null,null,null,null,null,null,null,null,null,null,null,null,0]
["2015-03-22",null,null,null,null,null,null,null,null,null,null,null,null,null,null,null,null,null,null,null,null,null,null,null,null,0]
["2015-03-23",null,null,null,null,null,null,null,null,null,null,null,null,null,null,null,null,null,null,null,null,null,null,null,null,0]
["2015-03-24",null,null,null,null,null,null,null,null,null,null,null,null,null,null,null,null,null,null,null,null,null,null,null,null,0]
["2015-03-25",null,null,null,null,null,null,null,null,null,null,null,null,null,null,null,null,null,null,null,null,null,null,null,null,0]
["2015-03-26",null,null,null,null,null,null,null,null,null,null,null,null,null,null,null,null,null,null,null,null,null,null,null,null,0]
["2015-03-27",null,null,null,null,null,null,null,null,null,null,null,null,null,null,null,null,null,null,null,null,null,null,null,null,0]
["2015-03-28",null,null,null,null,null,null,null,null,null,null,null,null,null,null,null,null,null,null,null,null,null,null,null,null,0]
["2015-03-29",null,null,null,null,null,null,null,null,null,null,null,null,null,null,null,null,null,null,null,null,null,null,null,null,0]
["2015-03-30",null,null,null,null,null,null,null,null,null,null,null,null,null,null,null,null,null,null,null,null,null,null,null,null,0]
["2015-03-31",null,null,null,null,null,null,null,null,null,null,null,null,null,null,null,null,null,null,null,null,null,null,null,null,0]
["2015-04-01",null,null,null,null,null,null,null,null,null,null,null,null,null,null,null,null,null,null,null,null,null,null,null,null,0]
["2015-04-02",null,null,null,null,null,null,null,null,null,null,null,null,null,null,null,null,null,null,null,null,null,null,null,null,0]
["2015-04-03",null,null,null,null,null,null,null,null,null,null,null,null,null,null,null,null,null,null,null,null,null,null,null,null,0]
["2015-04-04",null,null,null,null,null,null,null,null,null,null,null,null,null,null,null,null,null,null,null,null,null,null,null,null,0]
["2015-04-05",null,null,null,null,null,null,null,null,null,null,null,null,null,null,null,null,null,null,null,null,null,null,null,null,0]
["2015-04-06",null,null,null,null,null,null,null,null,null,null,null,null,null,null,null,null,null,null,null,null,null,null,null,null,0]
["2015-04-07",null,null,null,null,null,null,null,null,null,null,null,null,null,null,null,null,null,null,null,null,null,null,null,null,0]
["2015-04-08",null,null,null,null,null,null,null,null,null,null,null,null,null,null,null,null,null,null,null,null,null,null,null,null,0]
["2015-04-09",null,null,null,null,null,null,null,null,null,null,null,null,null,null,null,null,null,null,null,null,null,null,null,null,0]
["2015-04-10",null,null,null,null,null,null,null,null,null,null,null,null,null,null,null,null,null,null,null,null,null,null,null,null,0]
["2015-04-11",null,null,null,null,null,null,null,null,null,null,null,null,null,null,null,null,null,null,null,null,null,null,null,null,0]
["2015-04-12",null,null,null,null,null,null,null,null,null,null,null,null,null,null,null,null,null,null,null,null,null,null,null,null,0]
["2015-04-13",null,null,null,null,null,null,null,null,null,null,null,null,null,null,null,null,null,null,null,null,null,null,null,null,0]
["2015-04-14",null,null,null,null,null,null,null,null,null,null,null,null,null,null,null,null,null,null,null,null,null,null,null,null,0]
["2015-04-15",null,null,null,null,null,null,null,null,null,null,null,null,null,null,null,null,null,null,null,null,null,null,null,null,0]
["2015-04-16",null,null,null,null,null,null,null,null,null,null,null,null,null,null,null,null,null,null,null,null,null,null,null,null,0]
["2015-04-17",null,null,null,null,null,null,null,null,null,null,null,null,null,null,null,null,null,null,null,null,null,null,null,null,0]
["2015-04-18",null,null,null,null,null,null,null,null,null,null,null,null,null,null,null,null,null,null,null,null,null,null,null,null,0]
["2015-04-19",null,null,null,null,null,null,null,null,null,null,null,null,null,null,null,null,null,null,null,null,null,null,null,null,0]
["2015-04-20",null,null,null,null,null,null,null,null,null,null,null,null,null,null,null,null,null,null,null,null,null,null,null,null,0]
["2015-04-21",null,null,null,null,null,null,null,null,null,null,null,null,null,null,null,null,null,null,null,null,null,null,null,null,0]
["2015-04-22",null,null,null,null,null,null,null,null,null,null,null,null,null,null,null,null,null,null,null,null,null,null,null,null,0]
["2015-04-23",null,null,null,null,null,null,null,null,null,null,null,null,null,null,null,null,null,null,null,null,null,null,null,null,0]
["2015-04-24",null,null,null,null,null,null,null,null,null,null,null,null,null,null,null,null,null,null,null,null,null,null,null,null,0]
["2015-04-25",null,null,null,null,null,null,null,null,null,null,null,null,null,null,null,null,null,null,null,null,null,null,null,null,0]
["2015-04-26",null,null,null,null,null,null,null,null,null,null,null,null,null,null,null,null,null,null,null,null,null,null,null,null,0]
["2015-04-27",null,null,null,null,null,null,null,null,null,null,null,null,null,null,null,null,null,null,null,null,null,null,null,null,0]
["2015-04-28",null,null,null,null,null,null,null,null,null,null,null,null,null,null,null,null,null,null,null,null,null,null,null,null,0]
["2015-04-29",null,null,null,null,null,null,null,null,null,null,null,null,null,null,null,null,null,null,null,null,null,null,null,null,0]
["2015-04-30",null,null,null,null,null,null,null,null,null,null,null,null,null,null,null,null,null,null,null,null,null,null,null,null,0]
["2015-05-01",null,null,null,null,null,null,null,null,null,null,null,null,null,null,null,null,null,null,null,null,null,null,null,null,0]
["2015-05-02",null,null,null,null,null,null,null,null,null,null,null,null,null,null,null,null,null,null,null,null,null,null,null,null,0]
["2015-05-03",null,null,null,null,null,null,null,null,null,null,null,null,null,null,null,null,null,null,null,null,null,null,null,null,0]
["2015-05-04",null,null,null,null,null,null,null,null,null,null,null,null,null,null,null,null,null,null,null,null,null,null,null,null,0]
["2015-05-05",null,null,null,null,null,null,null,null,null,null,null,null,null,null,null,null,null,null,null,null,null,null,null,null,0]
["2015-05-06",null,null,null,null,null,null,null,null,null,null,null,null,null,null,null,null,null,null,null,null,null,null,null,null,0]
["2015-05-07",null,null,null,null,null,null,null,null,null,null,null,null,null,null,null,null,null,null,null,null,null,null,null,null,0]
["2015-05-08",null,null,null,null,null,null,null,null,null,null,null,null,null,null,null,null,null,null,null,null,null,null,null,null,0]
["2015-05-09",null,null,null,null,null,null,null,null,null,null,null,null,null,null,null,null,null,null,null,null,null,null,null,null,0]
["2015-05-10",null,null,null,null,null,null,null,null,null,null,null,null,null,null,null,null,null,null,null,null,null,null,null,null,{"$f":"COUNTA(B131:Y131)","v":0}]
["2015-05-11",null,null,null,null,null,null,null,null,null,null,null,null,null,null,null,null,null,null,null,null,null,null,null,null,0]
["2015-05-12",null,null,null,null,null,null,null,null,null,null,null,null,null,null,null,null,null,null,null,null,null,null,null,null,0]
["2015-05-13",null,null,null,null,null,null,null,null,null,null,null,null,null,null,null,null,null,null,null,null,null,null,null,null,0]
["2015-05-14",null,null,null,null,null,null,null,null,null,null,null,null,null,null,null,null,null,null,null,null,null,null,null,null,0]
["2015-05-15",null,null,null,null,null,null,null,null,null,null,null,null,null,null,null,null,null,null,null,null,null,null,null,null,0]
["2015-05-16",null,null,null,null,null,null,null,null,null,null,null,null,null,null,null,null,null,null,null,null,null,null,null,null,0]
["2015-05-17",null,null,null,null,null,null,null,null,null,null,null,null,null,null,null,null,null,null,null,null,null,null,null,null,0]
["2015-05-18",null,null,null,null,null,null,null,null,null,null,null,null,null,null,null,null,null,null,null,null,null,null,null,null,0]
["2015-05-19",null,null,null,null,null,null,null,null,null,null,null,null,null,null,null,null,null,null,null,null,null,null,null,null,0]
["2015-05-20",null,null,null,null,null,null,null,null,null,null,null,null,null,null,null,null,null,null,null,null,null,null,null,null,0]
["2015-05-21",null,null,null,null,null,null,null,null,null,null,null,null,null,null,null,null,null,null,null,null,null,null,null,null,0]
["2015-05-22",null,null,null,null,null,null,null,null,null,null,null,null,null,null,null,null,null,null,null,null,null,null,null,null,0]
["2015-05-23",null,null,null,null,null,null,null,null,null,null,null,null,null,null,null,null,null,null,null,null,null,null,null,null,0]
["2015-05-24",null,null,null,null,null,null,null,null,null,null,null,null,null,null,null,null,null,null,null,null,null,null,null,null,0]
["2015-05-25",null,null,null,null,null,null,null,null,null,null,null,null,null,null,null,null,null,null,null,null,null,null,null,null,0]
["2015-05-26",null,null,null,null,null,null,null,null,null,null,null,null,null,null,null,null,null,null,null,null,null,null,null,null,0]
["2015-05-27",null,null,null,null,null,null,null,null,null,null,null,null,null,null,null,null,null,null,null,null,null,null,null,null,0]
["2015-05-28",null,null,null,null,null,null,null,null,null,null,null,null,null,null,null,null,null,null,null,null,null,null,null,null,0]
["2015-05-29",null,null,null,null,null,null,null,null,null,null,null,null,null,null,null,null,null,null,null,null,null,null,null,null,0]
["2015-05-30",null,null,null,null,null,null,null,null,null,null,null,null,null,null,null,null,null,null,null,null,null,null,null,null,0]
["2015-05-31",null,null,null,null,null,null,null,null,null,null,null,null,null,null,null,null,null,null,null,null,null,null,null,null,0]
["2015-06-01",null,null,null,null,null,null,null,null,null,null,null,null,null,null,null,null,null,null,null,null,null,null,null,null,0]
["2015-06-02",null,null,null,null,null,null,null,null,null,null,null,null,null,null,null,null,null,null,null,null,null,null,null,null,0]
["2015-06-03",null,null,null,null,null,null,null,null,null,null,null,null,null,null,null,null,null,null,null,null,null,null,null,null,0]
["2015-06-04",null,null,null,null,null,null,null,null,null,null,null,null,null,null,null,null,null,null,null,null,null,null,null,null,0]
["2015-06-05",null,null,null,null,null,null,null,null,null,null,null,null,null,null,null,null,null,null,null,null,null,null,null,null,0]
["2015-06-06",null,null,null,null,null,null,null,null,null,null,null,null,null,null,null,null,null,null,null,null,null,null,null,null,0]
["2015-06-07",null,null,null,null,null,null,null,null,null,null,null,null,null,null,null,null,null,null,null,null,null,null,null,null,0]
["2015-06-08",null,null,null,null,null,null,null,null,null,null,null,null,null,null,null,null,null,null,null,null,null,null,null,null,0]
["2015-06-09",null,null,null,null,null,null,null,null,null,null,null,null,null,null,null,null,null,null,null,null,null,null,null,null,0]
["2015-06-10",null,null,null,null,null,null,null,null,null,null,null,null,null,null,null,null,null,null,null,null,null,null,null,null,0]
["2015-06-11",null,null,null,null,null,null,null,null,null,null,null,null,null,null,null,null,null,null,null,null,null,null,null,null,0]
["2015-06-12",null,null,null,null,null,null,null,null,null,null,null,null,null,null,null,null,null,null,null,null,null,null,null,null,0]
["2015-06-13",null,null,null,null,null,null,null,null,null,null,null,null,null,null,null,null,null,null,null,null,null,null,null,null,0]
["2015-06-14",null,null,null,null,null,null,null,null,null,null,null,null,null,null,null,null,null,null,null,null,null,null,null,null,0]
["2015-06-15",null,null,null,null,null,null,null,null,null,null,null,null,null,null,null,null,null,null,null,null,null,null,null,null,0]
["2015-06-16",null,null,null,null,null,null,null,null,null,null,null,null,null,null,null,null,null,null,null,null,null,null,null,null,0]
["2015-06-17",null,null,null,null,null,null,null,null,null,null,null,null,null,null,null,null,null,null,null,null,null,null,null,null,0]
["2015-06-18",null,null,null,null,null,null,null,null,null,null,null,null,null,null,null,null,null,null,null,null,null,null,null,null,0]
["2015-06-19",null,null,null,null,null,null,null,null,null,null,null,null,null,null,null,null,null,null,null,null,null,null,null,null,0]
["2015-06-20",null,null,null,null,null,null,null,null,null,null,null,null,null,null,null,null,null,null,null,null,null,null,null,null,0]
["2015-06-21",null,null,null,null,null,null,null,null,null,null,null,null,null,null,null,null,null,null,null,null,null,null,null,null,0]
["2015-06-22",null,null,null,null,null,null,null,null,null,null,null,null,null,null,null,null,null,null,null,null,null,null,null,null,0]
["2015-06-23",null,null,null,null,null,null,null,null,null,null,null,null,null,null,null,null,null,null,null,null,null,null,null,null,0]
["2015-06-24",null,null,null,null,null,null,null,null,null,null,null,null,null,null,null,null,null,null,null,null,null,null,null,null,0]
["2015-06-25",null,null,null,null,null,null,null,null,null,null,null,null,null,null,null,null,null,null,null,null,null,null,null,null,0]
["2015-06-26",null,null,null,null,null,null,null,null,null,null,null,null,null,null,null,null,null,null,null,null,null,null,null,null,0]
["2015-06-27",null,null,null,null,null,null,null,null,null,null,null,null,null,null,null,null,null,null,null,null,null,null,null,null,0]
["2015-06-28",null,null,null,null,null,null,null,null,null,null,null,null,null,null,null,null,null,null,null,null,null,null,null,null,0]
["2015-06-29",null,null,null,null,null,null,null,null,null,null,null,null,null,null,null,null,null,null,null,null,null,null,null,null,0]
["2015-06-30",null,null,null,null,null,null,null,null,null,null,null,null,null,null,null,null,null,null,null,null,null,null,null,null,0]
["2015-07-01",null,null,null,null,null,null,null,null,null,null,null,null,null,null,null,null,null,null,null,null,null,null,null,null,0]
["2015-07-02",null,null,null,null,null,null,null,null,null,null,null,null,null,null,null,null,null,null,null,null,null,null,null,null,0]
["2015-07-03",null,null,null,null,null,null,null,null,null,null,null,null,null,null,null,null,null,null,null,null,null,null,null,null,0]
["2015-07-04",null,null,null,null,null,null,null,null,null,null,null,null,null,null,null,null,null,null,null,null,null,null,null,null,0]
["2015-07-05",null,null,null,null,null,null,null,null,null,null,null,null,null,null,null,null,null,null,null,null,null,null,null,null,0]
["2015-07-06",null,null,null,null,null,null,null,null,null,null,null,null,null,null,null,null,null,null,null,null,null,null,null,null,0]
["2015-07-07",null,null,null,null,null,null,null,null,null,null,null,null,null,null,null,null,null,null,null,null,null,null,null,null,0]
["2015-07-08",null,null,null,null,null,null,null,null,null,null,null,null,null,null,null,null,null,null,null,null,null,null,null,null,0]
["2015-07-09",null,null,null,null,null,null,null,null,null,null,null,null,null,null,null,null,null,null,null,null,null,null,null,null,0]
["2015-07-10",null,null,null,null,null,null,null,null,null,null,null,null,null,null,null,null,null,null,null,null,null,null,null,null,0]
["2015-07-11",null,null,null,null,null,null,null,null,null,null,null,null,null,null,null,null,null,null,null,null,null,null,null,null,0]
["2015-07-12",null,null,null,null,null,null,null,null,null,null,null,null,null,null,null,null,null,null,null,null,null,null,null,null,0]
["2015-07-13",null,null,null,null,null,null,null,null,null,null,null,null,null,null,null,null,null,null,null,null,null,null,null,null,{"$f":"COUNTA(B195:Y195)","v":0}]
["2015-07-14",null,null,null,null,null,null,null,null,null,null,null,null,null,null,null,null,null,null,null,null,null,null,null,null,0]
["2015-07-15",null,null,null,null,null,null,null,null,null,null,null,null,null,null,null,null,null,null,null,null,null,null,null,null,0]
["2015-07-16",null,null,null,null,null,null,null,null,null,null,null,null,null,null,null,null,null,null,null,null,null,null,null,null,0]
["2015-07-17",null,null,null,null,null,null,null,null,null,null,null,null,null,null,null,null,null,null,null,null,null,null,null,null,0]
["2015-07-18",null,null,null,null,null,null,null,null,null,null,null,null,null,null,null,null,null,null,null,null,null,null,null,null,0]
["2015-07-19",null,null,null,null,null,null,null,null,null,null,null,null,null,null,null,null,null,null,null,null,null,null,null,null,0]
["2015-07-20",null,null,null,null,null,null,null,null,null,null,null,null,null,null,null,null,null,null,null,null,null,null,null,null,0]
["2015-07-21",null,null,null,null,null,null,null,null,null,null,null,null,null,null,null,null,null,null,null,null,null,null,null,null,0]
["2015-07-22",null,null,null,null,null,null,null,null,null,null,null,null,null,null,null,null,null,null,null,null,null,null,null,null,0]
["2015-07-23",null,null,null,null,null,null,null,null,null,null,null,null,null,null,null,null,null,null,null,null,null,null,null,null,0]
["2015-07-24",null,null,null,null,null,null,null,null,null,null,null,null,null,null,null,null,null,null,null,null,null,null,null,null,0]
["2015-07-25",null,null,null,null,null,null,null,null,null,null,null,null,null,null,null,null,null,null,null,null,null,null,null,null,0]
["2015-07-26",null,null,null,null,null,null,null,null,null,null,null,null,null,null,null,null,null,null,null,null,null,null,null,null,0]
["2015-07-27",null,null,null,null,null,null,null,null,null,null,null,null,null,null,null,null,null,null,null,null,null,null,null,null,0]
["2015-07-28",null,null,null,null,null,null,null,null,null,null,null,null,null,null,null,null,null,null,null,null,null,null,null,null,0]
["2015-07-29",null,null,null,null,null,null,null,null,null,null,null,null,null,null,null,null,null,null,null,null,null,null,null,null,0]
["2015-07-30",null,null,null,null,null,null,null,null,null,null,null,null,null,null,null,null,null,null,null,null,null,null,null,null,0]
["2015-07-31",null,null,null,null,null,null,null,null,null,null,null,null,null,null,null,null,null,null,null,null,null,null,null,null,0]
["2015-08-01",null,null,null,null,null,null,null,null,null,null,null,null,null,null,null,null,null,null,null,null,null,null,null,null,0]
["2015-08-02",null,null,null,null,null,null,null,null,null,null,null,null,null,null,null,null,null,null,null,null,null,null,null,null,0]
["2015-08-03",null,null,null,null,null,null,null,null,null,null,null,null,null,null,null,null,null,null,null,null,null,null,null,null,0]
["2015-08-04",null,null,null,null,null,null,null,null,null,null,null,null,null,null,null,null,null,null,null,null,null,null,null,null,0]
["2015-08-05",null,null,null,null,null,null,null,null,null,null,null,null,null,null,null,null,null,null,null,null,null,null,null,null,0]
["2015-08-06",null,null,null,null,null,null,null,null,null,null,null,null,null,null,null,null,null,null,null,null,null,null,null,null,0]
["2015-08-07",null,null,null,null,null,null,null,null,null,null,null,null,null,null,null,null,null,null,null,null,null,null,null,null,0]
["2015-08-08",null,null,null,null,null,null,null,null,null,null,null,null,null,null,null,null,null,null,null,null,null,null,null,null,0]
["2015-08-09",null,null,null,null,null,null,null,null,null,null,null,null,null,null,null,null,null,null,null,null,null,null,null,null,0]
["2015-08-10",null,null,null,null,null,null,null,null,null,null,null,null,null,null,null,null,null,null,null,null,null,null,null,null,0]
["2015-08-11",null,null,null,null,null,null,null,null,null,null,null,null,null,null,null,null,null,null,null,null,null,null,null,null,0]
["2015-08-12",null,null,null,null,null,null,null,null,null,null,null,null,null,null,null,null,null,null,null,null,null,null,null,null,0]
["2015-08-13",null,null,null,null,null,null,null,null,null,null,null,null,null,null,null,null,null,null,null,null,null,null,null,null,0]
["2015-08-14",null,null,null,null,null,null,null,null,null,null,null,null,null,null,null,null,null,null,null,null,null,null,null,null,0]
["2015-08-15",null,null,null,null,null,null,null,null,null,null,null,null,null,null,null,null,null,null,null,null,null,null,null,null,0]
["2015-08-16",null,null,null,null,null,null,null,null,null,null,null,null,null,null,null,null,null,null,null,null,null,null,null,null,0]
["2015-08-17",null,null,null,null,null,null,null,null,null,null,null,null,null,null,null,null,null,null,null,null,null,null,null,null,0]
["2015-08-18",null,null,null,null,null,null,null,null,null,null,null,null,null,null,null,null,null,null,null,null,null,null,null,null,0]
["2015-08-19",null,null,null,null,null,null,null,null,null,null,null,null,null,null,null,null,null,null,null,null,null,null,null,null,0]
["2015-08-20",null,null,null,null,null,null,null,null,null,null,null,null,null,null,null,null,null,null,null,null,null,null,null,null,0]
["2015-08-21",null,null,null,null,null,null,null,null,null,null,null,null,null,null,null,null,null,null,null,null,null,null,null,null,0]
["2015-08-22",null,null,null,null,null,null,null,null,null,null,null,null,null,null,null,null,null,null,null,null,null,null,null,null,0]
["2015-08-23",null,null,null,null,null,null,null,null,null,null,null,null,null,null,null,null,null,null,null,null,null,null,null,null,0]
["2015-08-24",null,null,null,null,null,null,null,null,null,null,null,null,null,null,null,null,null,null,null,null,null,null,null,null,0]
["2015-08-25",null,null,null,null,null,null,null,null,null,null,null,null,null,null,null,null,null,null,null,null,null,null,null,null,0]
["2015-08-26",null,null,null,null,null,null,null,null,null,null,null,null,null,null,null,null,null,null,null,null,null,null,null,null,0]
["2015-08-27",null,null,null,null,null,null,null,null,null,null,null,null,null,null,null,null,null,null,null,null,null,null,null,null,0]
["2015-08-28",null,null,null,null,null,null,null,null,null,null,null,null,null,null,null,null,null,null,null,null,null,null,null,null,0]
["2015-08-29",null,null,null,null,null,null,null,null,null,null,null,null,null,null,null,null,null,null,null,null,null,null,null,null,0]
["2015-08-30",null,null,null,null,null,null,null,null,null,null,null,null,null,null,null,null,null,null,null,null,null,null,null,null,0]
["2015-08-31",null,null,null,null,null,null,null,null,null,null,null,null,null,null,null,null,null,null,null,null,null,null,null,null,0]
["2015-09-01",null,null,null,null,null,null,null,null,null,null,null,null,null,null,null,null,null,null,null,null,null,null,null,null,0]
["2015-09-02",null,null,null,null,null,null,null,null,null,null,null,null,null,null,null,null,null,null,null,null,null,null,null,null,0]
["2015-09-03",null,null,null,null,null,null,null,null,null,null,null,null,null,null,null,null,null,null,null,null,null,null,null,null,0]
["2015-09-04",null,null,null,null,null,null,null,null,null,null,null,null,null,null,null,null,null,null,null,null,null,null,null,null,0]
["2015-09-05",null,null,null,null,null,null,null,null,null,null,null,null,null,null,null,null,null,null,null,null,null,null,null,null,0]
["2015-09-06",null,null,null,null,null,null,null,null,null,null,null,null,null,null,null,null,null,null,null,null,null,null,null,null,0]
["2015-09-07",null,null,null,null,null,null,null,null,null,null,null,null,null,null,null,null,null,null,null,null,null,null,null,null,0]
["2015-09-08",null,null,null,null,null,null,null,null,null,null,null,null,null,null,null,null,null,null,null,null,null,null,null,null,0]
["2015-09-09",null,null,null,null,null,null,null,null,null,null,null,null,null,null,null,null,null,null,null,null,null,null,null,null,0]
["2015-09-10",null,null,null,null,null,null,null,null,null,null,null,null,null,null,null,null,null,null,null,null,null,null,null,null,0]
["2015-09-11",null,null,null,null,null,null,null,null,null,null,null,null,null,null,null,null,null,null,null,null,null,null,null,null,0]
["2015-09-12",null,null,null,null,null,null,null,null,null,null,null,null,null,null,null,null,null,null,null,null,null,null,null,null,0]
["2015-09-13",null,null,null,null,null,null,null,null,null,null,null,null,null,null,null,null,null,null,null,null,null,null,null,null,0]
["2015-09-14",null,null,null,null,null,null,null,null,null,null,null,null,null,null,null,null,null,null,null,null,null,null,null,null,0]
["2015-09-15",null,null,null,null,null,null,null,null,null,null,null,null,null,null,null,null,null,null,null,null,null,null,null,null,{"$f":"COUNTA(B259:Y259)","v":0}]
["2015-09-16",null,null,null,null,null,null,null,null,null,null,null,null,null,null,null,null,null,null,null,null,null,null,null,null,0]
["2015-09-17",null,null,null,null,null,null,null,null,null,null,null,null,null,null,null,null,null,null,null,null,null,null,null,null,0]
["2015-09-18",null,null,null,null,null,null,null,null,null,null,null,null,null,null,null,null,null,null,null,null,null,null,null,null,0]
["2015-09-19",null,null,null,null,null,null,null,null,null,null,null,null,null,null,null,null,null,null,null,null,null,null,null,null,0]
["2015-09-20",null,null,null,null,null,null,null,null,null,null,null,null,null,null,null,null,null,null,null,null,null,null,null,null,0]
["2015-09-21",null,null,null,null,null,null,null,null,null,null,null,null,null,null,null,null,null,null,null,null,null,null,null,null,0]
["2015-09-22",null,null,null,null,null,null,null,null,null,null,null,null,null,null,null,null,null,null,null,null,null,null,null,null,0]
["2015-09-23",null,null,null,null,null,null,null,null,null,null,null,null,null,null,null,null,null,null,null,null,null,null,null,null,0]
["2015-09-24",null,null,null,null,null,null,null,null,null,null,null,null,null,null,null,null,null,null,null,null,null,null,null,null,0]
["2015-09-25",null,null,null,null,null,null,null,null,null,null,null,null,null,null,null,null,null,null,null,null,null,null,null,null,0]
["2015-09-26",null,null,null,null,null,null,null,null,null,null,null,null,null,null,null,null,null,null,null,null,null,null,null,null,0]
["2015-09-27",null,null,null,null,null,null,null,null,null,null,null,null,null,null,null,null,null,null,null,null,null,null,null,null,0]
["2015-09-28",null,null,null,null,null,null,null,null,null,null,null,null,null,null,null,null,null,null,null,null,null,null,null,null,0]
["2015-09-29",null,null,null,null,null,null,null,null,null,null,null,null,null,null,null,null,null,null,null,null,null,null,null,null,0]
["2015-09-30",null,null,null,null,null,null,null,null,null,null,null,null,null,null,null,null,null,null,null,null,null,null,null,null,0]
["2015-10-01",null,null,null,null,null,null,null,null,null,null,null,null,null,null,null,null,null,null,null,null,null,null,null,null,0]
["2015-10-02",null,null,null,null,null,null,null,null,null,null,null,null,null,null,null,null,null,null,null,null,null,null,null,null,0]
["2015-10-03",null,null,null,null,null,null,null,null,null,null,null,null,null,null,null,null,null,null,null,null,null,null,null,null,0]
["2015-10-04",null,null,null,null,null,null,null,null,null,null,null,null,null,null,null,null,null,null,null,null,null,null,null,null,0]
["2015-10-05",null,null,null,null,null,null,null,null,null,null,null,null,null,null,null,null,null,null,null,null,null,null,null,null,0]
["2015-10-06",null,null,null,null,null,null,null,null,null,null,null,null,null,null,null,null,null,null,null,null,null,null,null,null,0]
["2015-10-07",null,null,null,null,null,null,null,null,null,null,null,null,null,null,null,null,null,null,null,null,null,null,null,null,0]
["2015-10-08",null,null,null,null,null,null,null,null,null,null,null,null,null,null,null,null,null,null,null,null,null,null,null,null,0]
["2015-10-09",null,null,null,null,null,null,null,null,null,null,null,null,null,null,null,null,null,null,null,null,null,null,null,null,0]
["2015-10-10",null,null,null,null,null,null,null,null,null,null,null,null,null,null,null,null,null,null,null,null,null,null,null,null,0]
["2015-10-11",null,null,null,null,null,null,null,null,null,null,null,null,null,null,null,null,null,null,null,null,null,null,null,null,0]
["2015-10-12",null,null,null,null,null,null,null,null,null,null,null,null,null,null,null,null,null,null,null,null,null,null,null,null,0]
["2015-10-13",null,null,null,null,null,null,null,null,null,null,null,null,null,null,null,null,null,null,null,null,null,null,null,null,0]
["2015-10-14",null,null,null,null,null,null,null,null,null,null,null,null,null,null,null,null,null,null,null,null,null,null,null,null,0]
["2015-10-15",null,null,null,null,null,null,null,null,null,null,null,null,null,null,null,null,null,null,null,null,null,null,null,null,0]
["2015-10-16",null,null,null,null,null,null,null,null,null,null,null,null,null,null,null,null,null,null,null,null,null,null,null,null,0]
["2015-10-17",null,null,null,null,null,null,null,null,null,null,null,null,null,null,null,null,null,null,null,null,null,null,null,null,0]
["2015-10-18",null,null,null,null,null,null,null,null,null,null,null,null,null,null,null,null,null,null,null,null,null,null,null,null,0]
["2015-10-19",null,null,null,null,null,null,null,null,null,null,null,null,null,null,null,null,null,null,null,null,null,null,null,null,0]
["2015-10-20",null,null,null,null,null,null,null,null,null,null,null,null,null,null,null,null,null,null,null,null,null,null,null,null,0]
["2015-10-21",null,null,null,null,null,null,null,null,null,null,null,null,null,null,null,null,null,null,null,null,null,null,null,null,0]
["2015-10-22",null,null,null,null,null,null,null,null,null,null,null,null,null,null,null,null,null,null,null,null,null,null,null,null,0]
["2015-10-23",null,null,null,null,null,null,null,null,null,null,null,null,null,null,null,null,null,null,null,null,null,null,null,null,0]
["2015-10-24",null,null,null,null,null,null,null,null,null,null,null,null,null,null,null,null,null,null,null,null,null,null,null,null,0]
["2015-10-25",null,null,null,null,null,null,null,null,null,null,null,null,null,null,null,null,null,null,null,null,null,null,null,null,0]
["2015-10-26",null,null,null,null,null,null,null,null,null,null,null,null,null,null,null,null,null,null,null,null,null,null,null,null,0]
["2015-10-27",null,null,null,null,null,null,null,null,null,null,null,null,null,null,null,null,null,null,null,null,null,null,null,null,0]
["2015-10-28",null,null,null,null,null,null,null,null,null,null,null,null,null,null,null,null,null,null,null,null,null,null,null,null,0]
["2015-10-29",null,null,null,null,null,null,null,null,null,null,null,null,null,null,null,null,null,null,null,null,null,null,null,null,0]
["2015-10-30",null,null,null,null,null,null,null,null,null,null,null,null,null,null,null,null,null,null,null,null,null,null,null,null,0]
["2015-10-31",null,null,null,null,null,null,null,null,null,null,null,null,null,null,null,null,null,null,null,null,null,null,null,null,0]
["2015-11-01",null,null,null,null,null,null,null,null,null,null,null,null,null,null,null,null,null,null,null,null,null,null,null,null,0]
["2015-11-02",null,null,null,null,null,null,null,null,null,null,null,null,null,null,null,null,null,null,null,null,null,null,null,null,0]
["2015-11-03",null,null,null,null,null,null,null,null,null,null,null,null,null,null,null,null,null,null,null,null,null,null,null,null,0]
["2015-11-04",null,null,null,null,null,null,null,null,null,null,null,null,null,null,null,null,null,null,null,null,null,null,null,null,0]
["2015-11-05",null,null,null,null,null,null,null,null,null,null,null,null,null,null,null,null,null,null,null,null,null,null,null,null,0]
["2015-11-06",null,null,null,null,null,null,null,null,null,null,null,null,null,null,null,null,null,null,null,null,null,null,null,null,0]
["2015-11-07",null,null,null,null,null,null,null,null,null,null,null,null,null,null,null,null,null,null,null,null,null,null,null,null,0]
["2015-11-08",null,null,null,null,null,null,null,null,null,null,null,null,null,null,null,null,null,null,null,null,null,null,null,null,0]
["2015-11-09",null,null,null,null,null,null,null,null,null,null,null,null,null,null,null,null,null,null,null,null,null,null,null,null,0]
["2015-11-10",null,null,null,null,null,null,null,null,null,null,null,null,null,null,null,null,null,null,null,null,null,null,null,null,0]
["2015-11-11",null,null,null,null,null,null,null,null,null,null,null,null,null,null,null,null,null,null,null,null,null,null,null,null,0]
["2015-11-12",null,null,null,null,null,null,null,null,null,null,null,null,null,null,null,null,null,null,null,null,null,null,null,null,0]
["2015-11-13",null,null,null,null,null,null,null,null,null,null,null,null,null,null,null,null,null,null,null,null,null,null,null,null,0]
["2015-11-14",null,null,null,null,null,null,null,null,null,null,null,null,null,null,null,null,null,null,null,null,null,null,null,null,0]
["2015-11-15",null,null,null,null,null,null,null,null,null,null,null,null,null,null,null,null,null,null,null,null,null,null,null,null,0]
["2015-11-16",null,null,null,null,null,null,null,null,null,null,null,null,null,null,null,null,null,null,null,null,null,null,null,null,0]
["2015-11-17",null,null,null,null,null,null,null,null,null,null,null,null,null,null,null,null,null,null,null,null,null,null,null,null,0]
["2015-11-18",null,null,null,null,null,null,null,null,null,null,null,null,null,null,null,null,null,null,null,null,null,null,null,null,{"$f":"COUNTA(B323:Y323)","v":0}]
["2015-11-19",null,null,null,null,null,null,null,null,null,null,null,null,null,null,null,null,null,null,null,null,null,null,null,null,0]
["2015-11-20",null,null,null,null,null,null,null,null,null,null,null,null,null,null,null,null,null,null,null,null,null,null,null,null,0]
["2015-11-21",null,null,null,null,null,null,null,null,null,null,null,null,null,null,null,null,null,null,null,null,null,null,null,null,0]
["2015-11-22",null,null,null,null,null,null,null,null,null,null,null,null,null,null,null,null,null,null,null,null,null,null,null,null,0]
["2015-11-23",null,null,null,null,null,null,null,null,null,null,null,null,null,null,null,null,null,null,null,null,null,null,null,null,0]
["2015-11-24",null,null,null,null,null,null,null,null,null,null,null,null,null,null,null,null,null,null,null,null,null,null,null,null,0]
["2015-11-25",null,null,null,null,null,null,null,null,null,null,null,null,null,null,null,null,null,null,null,null,null,null,null,null,0]
["2015-11-26",null,null,null,null,null,null,null,null,null,null,null,null,null,null,null,null,null,null,null,null,null,null,null,null,0]
["2015-11-27",null,null,null,null,null,null,null,null,null,null,null,null,null,null,null,null,null,null,null,null,null,null,null,null,0]
["2015-11-28",null,null,null,null,null,null,null,null,null,null,null,null,null,null,null,null,null,null,null,null,null,null,null,null,0]
["2015-11-29",null,null,null,null,null,null,null,null,null,null,null,null,null,null,null,null,null,null,null,null,null,null,null,null,0]
["2015-11-30",null,null,null,null,null,null,null,null,null,null,null,null,null,null,null,null,null,null,null,null,null,null,null,null,0]
["2015-12-01",null,null,null,null,null,null,null,null,null,null,null,null,null,null,null,null,null,null,null,null,null,null,null,null,0]
["2015-12-02",null,null,null,null,null,null,null,null,null,null,null,null,null,null,null,null,null,null,null,null,null,null,null,null,0]
["2015-12-03",null,null,null,null,null,null,null,null,null,null,null,null,null,null,null,null,null,null,null,null,null,null,null,null,0]
["2015-12-04",null,null,null,null,null,null,null,null,null,null,null,null,null,null,null,null,null,null,null,null,null,null,null,null,0]
["2015-12-05",null,null,null,null,null,null,null,null,null,null,null,null,null,null,null,null,null,null,null,null,null,null,null,null,0]
["2015-12-06",null,null,null,null,null,null,null,null,null,null,null,null,null,null,null,null,null,null,null,null,null,null,null,null,0]
["2015-12-07",null,null,null,null,null,null,null,null,null,null,null,null,null,null,null,null,null,null,null,null,null,null,null,null,0]
["2015-12-08",null,null,null,null,null,null,null,null,null,null,null,null,null,null,null,null,null,null,null,null,null,null,null,null,0]
["2015-12-09",null,null,null,null,null,null,null,null,null,null,null,null,null,null,null,null,null,null,null,null,null,null,null,null,0]
["2015-12-10",null,null,null,null,null,null,null,null,null,null,null,null,null,null,null,null,null,null,null,null,null,null,null,null,0]
["2015-12-11",null,null,null,null,null,null,null,null,null,null,null,null,null,null,null,null,null,null,null,null,null,null,null,null,0]
["2015-12-12",null,null,null,null,null,null,null,null,null,null,null,null,null,null,null,null,null,null,null,null,null,null,null,null,0]
["2015-12-13",null,null,null,null,null,null,null,null,null,null,null,null,null,null,null,null,null,null,null,null,null,null,null,null,0]
["2015-12-14",null,null,null,null,null,null,null,null,null,null,null,null,null,null,null,null,null,null,null,null,null,null,null,null,0]
["2015-12-15",null,null,null,null,null,null,null,null,null,null,null,null,null,null,null,null,null,null,null,null,null,null,null,null,0]
["2015-12-16",null,null,null,null,null,null,null,null,null,null,null,null,null,null,null,null,null,null,null,null,null,null,null,null,0]
["2015-12-17",null,null,null,null,null,null,null,null,null,null,null,null,null,null,null,null,null,null,null,null,null,null,null,null,0]
["2015-12-18",null,null,null,null,null,null,null,null,null,null,null,null,null,null,null,null,null,null,null,null,null,null,null,null,0]
["2015-12-19",null,null,null,null,null,null,null,null,null,null,null,null,null,null,null,null,null,null,null,null,null,null,null,null,0]
["2015-12-20",null,null,null,null,null,null,null,null,null,null,null,null,null,null,null,null,null,null,null,null,null,null,null,null,0]
["2015-12-21",null,null,null,null,null,null,null,null,null,null,null,null,null,null,null,null,null,null,null,null,null,null,null,null,0]
["2015-12-22",null,null,null,null,null,null,null,null,null,null,null,null,null,null,null,null,null,null,null,null,null,null,null,null,0]
["2015-12-23",null,null,null,null,null,null,null,null,null,null,null,null,null,null,null,null,null,null,null,null,null,null,null,null,0]
["2015-12-24",null,null,null,null,null,null,null,null,null,null,null,null,null,null,null,null,null,null,null,null,null,null,null,null,0]
["2015-12-25",null,null,null,null,null,null,null,null,null,null,null,null,null,null,null,null,null,null,null,null,null,null,null,null,0]
["2015-12-26",null,null,null,null,null,null,null,null,null,null,null,null,null,null,null,null,null,null,null,null,null,null,null,null,0]
["2015-12-27",null,null,null,null,null,null,null,null,null,null,null,null,null,null,null,null,null,null,null,null,null,null,null,null,0]
["2015-12-28",null,null,null,null,null,null,null,null,null,null,null,null,null,null,null,null,null,null,null,null,null,null,null,null,0]
["2015-12-29",null,null,null,null,null,null,null,null,null,null,null,null,null,null,null,null,null,null,null,null,null,null,null,null,0]
["2015-12-30",null,null,null,null,null,null,null,null,null,null,null,null,null,null,null,null,null,null,null,null,null,null,null,null,0]
["2015-12-31",null,null,null,null,null,null,null,null,null,null,null,null,null,null,null,null,null,null,null,null,null,null,null,null,0]

{"sheet":"Нормы раб.времени","index":2,"n_rows":24,"n_cols":7,"rows_kept":24,"cut":false,"hidden":false,"merged":[[3,1,3,3],[3,4,3,6]]}
["Нормы рабочего времени на 2015 год"]
[]
[]
[null,"Количество дней",null,null,"Рабочее время в часах при рабочей неделе"]
[null,"календарных","рабочих","выходных и праздничных","40-часовой","36-часовой","24-часовой"]
["Январь",31,15,16,120,108,72]
["Февраль",28,19,9,152,136.80000000000001,91.2]
["Март",31,21,10,168,151.19999999999999,100.8]
["1 квартал",{"$f":"SUM(B6:B8)","v":90},{"$f":"SUM(C6:C8)","v":55},35,440,396,264]
["Апрель",30,22,8,175,157.4,104.6]
["Май",31,18,13,143,128.6,85.4]
["Июнь",30,21,9,167,150.19999999999999,99.8]
["2 квартал",{"$f":"SUM(B10:B12)","v":91},{"$f":"SUM(C10:C12)","v":61},30,485,436.2,289.8]
["1 полугодие",{"$f":"B9+B13","v":181},{"$f":"C9+C13","v":116},65,925,832.2,553.79999999999995]
["Июль",31,23,8,184,165.6,110.4]
["Август",31,21,10,168,151.19999999999999,100.8]
["Сентябрь",30,22,8,176,158.4,105.6]
["3 квартал",{"$f":"SUM(B15:B17)","v":92},{"$f":"SUM(C15:C17)","v":66},26,528,475.19999999999993,316.79999999999995]
["Октябрь",31,22,9,176,158.4,105.6]
["Ноябрь",30,20,10,159,143,95]
["Декабрь",31,23,8,183,164.6,109.4]
["4 квартал",{"$f":"SUM(B19:B21)","v":92},{"$f":"SUM(C19:C21)","v":65},27,518,466,310]
["2 полугодие",{"$f":"B18+B22","v":184},{"$f":"C18+C22","v":131},53,1046,941.19999999999993,626.79999999999995]
["2015 год",{"$f":"B14+B23","v":365},{"$f":"C14+C23","v":247},118,1971,1773.4,1180.5999999999999]

{"sheet":"Праздники","index":3,"n_rows":136,"n_cols":2,"rows_kept":136,"cut":false,"hidden":false,"merged":[]}
["2015-01-01","Новый Год"]
["2015-01-01","Международный день похмелья"]
["2015-01-07","Рождество"]
["2015-01-11","День заповедников"]
["2015-01-12","День работника прокуратуры РФ"]
["2015-01-13","День Российской печати"]
["2015-01-14","Cтарый Новый год"]
["2015-01-19","Крещение (5-й двунадесятый праздник)"]
["2015-01-21","День инженерных войск"]
["2015-01-25","День студентов. Татьянин День"]
["2015-01-25","День штурмана ВМФ"]
["2015-01-27","День снятия блокады Ленинграда (1944 г.) - 70-летие"]
["2015-02-02","День разгрома немецко-фашистких войск под Сталинградом (1943)"]
["2015-02-08","День российской науки"]
["2015-02-10","День дипломатического работника"]
["2015-02-14","День всех влюбленных"]
["2015-02-14","Неофициальный Праздник \"День компьютерщика\""]
["2015-02-15","Сретенье"]
["2015-02-22","Проводы Русской зимы Праздник солнца - Масленица"]
["2015-02-23","День Защитника Отечества"]
["2015-03-08","Международный Женский День"]
["2015-03-08","День работников геодезии и картографии"]
["2015-03-10","День архивов"]
["2015-03-12","День кадрового работника юстиции"]
["2015-03-15","День торговли"]
["2015-03-18","День налоговой полиции"]
["2015-03-25","День работников культуры России"]
["2015-03-27","День внутренних войск МВД России"]
["2015-04-01","День смеха"]
["2015-04-02","День единения народов Беларуси и России"]
["2015-04-05","День Геолога"]
["2015-04-05","Вербное Воскресенье"]
["2015-04-07","Благовещение. День Рунета"]
["2015-04-12","День Авиации и Космонавтики"]
["2015-04-12","Пасха: Светлое Христово Воскресенье"]
["2015-04-19","Праздники: Красная Горка. Фомина неделя. Венчания"]
["2015-04-30","День пожарной охраны"]
["2015-05-01","Праздник солидарности трудящихся (День Труда)"]
["2015-05-07","День Радио"]
["2015-05-09","День Победы"]
["2015-05-18","Международный день музеев"]
["2015-05-21","Вознесение"]
["2015-05-24","День святых Мефодия и Кирилла. День славянской письменности и культуры"]
["2015-05-27","Всероссийский день библиотек"]
["2014-05-26","День Предпринимателя (День российского предпринимательства)"]
["2015-05-28","День Пограничника"]
["2015-05-29","День Военного Автомобилиста"]
["2015-05-29","День Сварщика-пт"]
["2015-05-31","Троица"]
["2015-05-31","День Химика -вс"]
["2015-06-01","День защиты детей (Международный день детей)"]
["2015-06-01","День Военно-транспортной авиации России"]
["2015-06-06","Пушкинский день России"]
["2015-06-07","День Мелиоратора"]
["2015-06-08","День социального Работника"]
["2015-06-12","День России"]
["2015-06-14","День работников легкой промышленности"]
["2015-06-14","День работников миграционной службы"]
["2015-06-21","День медицинского работника"]
["2015-06-22","День памяти и скорби"]
["2015-06-25","День дружбы, единения славян"]
["2015-06-27","День молодежи России"]
["2015-06-27","День Изобретателя и рационализатора"]
["2015-07-03","День ГАИ (День ГИБДД МВД)"]
["2015-07-05","День Морфлота и Речфлота"]
["2015-07-12","День Российской почты, День рыбака"]
["2015-07-17","Ураза-байрам"]
["2015-07-19","День Металлурга"]
["2015-07-25","День работника торговли"]
["2015-07-26","День ВМФ-вс"]
["2015-07-28","День PR-специалиста"]
["2015-08-01","День инкассатора"]
["2015-08-01","День тыла Вооруженных Сил Российской Федерации"]
["2015-08-02","День Воздушно-десантных войск"]
["2015-08-02","День Железнодорожника"]
["2015-08-06","День Железнодорожных войск"]
["2015-08-08","День Физкультурника"]
["2015-08-09","День Строителя"]
["2015-08-12","День Военно-Воздушных Сил. День ВВС"]
["2015-08-16","День Авиации (День Воздушного флота РФ)"]
["2015-08-16","Преображение"]
["2015-08-22","День Государственного флага Российской Федерации"]
["2015-08-22","День победы советских войск в Курской битве (1943)"]
["2015-08-27","День кино России"]
["2015-08-28","Успение"]
["2015-08-30","День Шахтера-вс"]
["2015-09-01","День Знаний"]
["2015-09-02","День Российской Гвардии"]
["2015-09-06","День Нефтяника"]
["2015-09-13","День Танкиста"]
["2015-09-20","День работников Леса"]
["2015-09-21","Рождество Богородицы"]
["2015-09-24","Курбан-байрам"]
["2015-09-27","Воздвижение"]
["2015-09-27","День воспитателя"]
["2015-09-27","День Машиностроителя-вс"]
["2015-09-30","День Интернета России"]
["2015-10-01","День Сухопутных войск РФ"]
["2015-10-04","День военно-космических сил России"]
["2015-10-04","День войск гражданской обороны. День МЧС"]
["2015-10-04","День Учителя"]
["2015-10-05","День работников уголовного розыска"]
["2015-10-06","День российского страховщика"]
["2015-10-11","День работника сельского хозяйства"]
["2015-10-18","День работника пищевой промышленности"]
["2015-10-20","День войск связи вооруженных сил РФ"]
["2015-10-24","День соединений и частей специального назначения"]
["2015-10-25","День таможенника Российской Федерации"]
["2015-10-25","День автомобилиста-вс"]
["2015-10-29","День работников службы вневедомственной охраны МВД"]
["2015-10-30","День инженера-механика"]
["2015-10-30","День памяти жертв политических репрессий"]
["2015-11-04","День народного единства"]
["2015-11-05","День военного разведчика"]
["2015-11-06","День судебного пристава"]
["2015-11-07","День Октябрьской революции 1917 года"]
["2015-11-10","День Милиции"]
["2015-11-11","День памяти погибших в первой мировой войне"]
["2015-11-13","День Войск радиационной, химической и биологической защиты Министерства обороны РФ"]
["2015-11-15","Всероссийский день призывника"]
["2015-11-19","День ракетных войск и артиллерии"]
["2015-11-21","День работника налоговых органов"]
["2015-11-27","День оценщика"]
["2015-11-27","День Морской пехоты"]
["2015-11-29","День Матери России"]
["2015-12-03","День Юриста"]
["2015-12-04","Введение"]
["2015-12-04","День информатики"]
["2015-12-12","День Конституции Российской Федерации"]
["2015-12-15","День памяти журналистов, погибших при исполнении профессиональных обязанностей"]
["2015-12-15","День работников ЗАГСа."]
["2015-12-17","День ракетных войск стратегического назначения."]
["2015-12-20","День работника органов государственной безопасности РФ (День ФСБ)"]
["2015-12-22","День Энергетика"]
["2015-12-23","День Дальней авиации ВВС России"]
["2015-12-27","День спасателя Российской Федерации"]